fUSD/lending_fUSD_20250606
["ID","MTS","AMOUNT","RATE_DAILY","PERIOD"]
[364789311,1749241890636,-622.3,0.00028876,5]
[364789312,1749241890646,-480.0,0.00028876,5]
[364789313,1749241890655,-2822.75,0.00028876,5]
[364789314,1749241890665,-1363.03,0.00028876,5]
[364789315,1749241890674,-3135.14,0.00028876,5]
[364789316,1749241890684,-1180.93,0.00028876,5]
[364789317,1749241890694,-931.09,0.00028876,5]
[364789318,1749241890704,-480.0,0.00028876,5]
[364789319,1749241890714,-1414.51,0.00028876,5]
[364789320,1749241890723,-1155.88,0.00028876,5]
[364789321,1749241890732,-4001.96,0.00028876,5]
[364789322,1749241890741,-552.73,0.00028876,5]
[364789323,1749241890751,-632.88,0.00028876,5]
[364789324,1749241890762,-1526.89,0.00028876,5]
[364789325,1749241890771,-1010.46,0.00028876,5]
[364789326,1749241890785,-480.0,0.00028876,5]
[364789327,1749241890795,-1132.61,0.00028876,5]
[364789328,1749241890805,-533.37,0.00028876,5]
[364789329,1749241890814,-1110.02,0.00028876,5]
[364789330,1749241890824,-4560.52,0.00028876,5]
[364789331,1749241890834,-593.39,0.00028876,5]
[364789332,1749241890844,-480.0,0.00028876,5]
[364789333,1749241890855,-1741.06,0.00028876,5]
[364789334,1749241890865,-480.0,0.00028876,5]
[364789335,1749241890876,-480.0,0.00028876,5]
[364789336,1749241890885,-480.0,0.00028876,5]
[364789337,1749241890895,-1207.6,0.00028876,5]
[364789338,1749241890905,-480.0,0.00028876,5]
[364789339,1749241890915,-526.84,0.00028876,5]
[364789340,1749241890925,-625.4,0.00028876,5]
[364789341,1749241890936,-776.39,0.00028876,5]
[364789342,1749241890946,-1627.41,0.00028876,5]
[364789343,1749241890958,-959.5,0.00028876,5]
[364789344,1749241890967,-3166.58,0.00028876,5]
[364789345,1749241890978,-480.0,0.00028876,5]
[364789346,1749241890989,-480.0,0.00028876,5]
[364789347,1749241891001,-1176.26,0.00028876,5]
[364789348,1749241891013,-1451.66,0.00028876,5]
[364789349,1749241891024,-480.0,0.00028876,5]
[364789350,1749241891035,-480.0,0.00028876,5]
[364789351,1749241891045,-279.30970295,0.00028876,5]
[364789352,1749241891056,-480.0,0.00028876,5]
[364789353,1749241891068,-2618.96,0.00028876,5]
[364789354,1749241891078,-7319.26,0.00028876,5]
[364789355,1749241891087,-15228.1,0.00028876,5]
[364789356,1749241891096,-480.0,0.00028876,5]
[364789357,1749241891107,-3041.7,0.00028876,5]
[364789358,1749241891117,-649.3,0.00028876,5]
[364789359,1749241891126,-480.0,0.00028876,5]
[364789360,1749241891135,-585.28,0.00028876,5]
[364789361,1749241891145,-11478.06,0.00028876,5]
[364789362,1749241891155,-1727.03,0.00028876,5]
[364789363,1749241891165,-1130.77,0.00028876,5]
[364789364,1749241891175,-7297.24,0.00028876,5]
[364789365,1749241891184,-480.0,0.00028876,5]
[364789366,1749241891194,-1673.57,0.00028876,5]
[364789367,1749241891204,-480.0,0.00028876,5]
[364789368,1749241891214,-480.0,0.00028876,5]
[364789369,1749241891224,-1724.44,0.00028876,5]
[364789370,1749241891235,-605.57,0.00028876,5]
[364789371,1749241891245,-2022.54,0.00028876,5]
[364789372,1749241891255,-1496.76,0.00028876,5]
[364789373,1749241891265,-616.43,0.00028876,5]
[364789374,1749241891275,-480.0,0.00028876,5]
[364789375,1749241891284,-1644.54,0.00028876,5]
[364789376,1749241891295,-3349.68,0.00028876,5]
[364789377,1749241891306,-584.83,0.00028876,5]
[364789378,1749241891316,-624.52,0.00028876,5]
[364789379,1749241891326,-1651.89,0.00028876,5]
[364789380,1749241891336,-869.35,0.00028876,5]
[364789381,1749241891346,-360.792683,0.00028876,5]
[364789382,1749241891357,-718.31,0.00028876,5]
[364789383,1749241891367,-567.05,0.00028876,5]
[364789384,1749241891377,-593.22,0.00028876,5]
[364789385,1749241891386,-724.33,0.00028876,5]
[364789386,1749241891396,-1529.35,0.00028876,5]
[364789387,1749241891406,-586.21,0.00028876,5]
[364789388,1749241891416,-618.5,0.00028876,5]
[364789389,1749241891426,-645.12,0.00028876,5]
[364789390,1749241891436,-1029.88,0.00028876,5]
[364789391,1749241891446,-856.04,0.00028876,5]
[364789392,1749241891456,-1316.83,0.00028876,5]
[364789393,1749241891465,-1219.25,0.00028876,5]
[364789394,1749241891475,-937.26,0.00028876,5]
[364789395,1749241891485,-2376.4,0.00028876,5]
[364789396,1749241891496,-480.0,0.00028876,2]
[364789397,1749241891510,-481.35,0.00028876,5]
[364789398,1749241891520,-1691.35,0.00028876,5]
[364789399,1749241891529,-150.0,0.0002888,7]
[364789400,1749241891539,-255.59327405,0.00028884,7]
[364789401,1749241891550,-326.78703344,0.00028884,7]
[364789402,1749241891560,-300.17,0.0002889,2]
[364789403,1749241891571,-150.0,0.00028895,7]
[364789404,1749241891581,-400.0,0.000289,10]
[364789405,1749241891591,-150.0,0.00028901,7]
[364789406,1749241891602,-150.0,0.00028904,7]
[364789407,1749241891613,-255.59327405,0.00028916,7]
[364789408,1749241891623,-150.0,0.00028916,7]
[364789409,1749241891633,-326.78703344,0.00028916,7]
[364789410,1749241891643,-1037.35961266,0.00028932,30]
[364789411,1749241891654,-150.0,0.00028934,7]
[364789412,1749241891664,-161.59032197,0.00028938,2]
[364789413,1749241891674,-150.0,0.00028945,7]
[364789414,1749241891683,-255.59327405,0.00028948,7]
[364789415,1749241891694,-326.78703344,0.00028948,7]
[364789416,1749241891704,-2099.41867,0.0002895,2]
[364789417,1749241891716,-150.0,0.00028953,7]
[364789418,1749241891725,-150.0,0.00028956,7]
[364789419,1749241891736,-177262.5863174,0.0002896,2]
[364789420,1749241891745,-17578.1489229,0.0002896,2]
[364789421,1749241891755,-5994.6728786,0.0002896,2]
[364789422,1749241891765,-150.0,0.00028968,7]
[364789423,1749241891775,-150.0,0.00028972,7]
[364789424,1749241891785,-150.0,0.00028973,7]
[364789425,1749241891796,-255.59327405,0.00028981,7]
[364789426,1749241891806,-326.78703344,0.00028981,7]
[364789427,1749241891818,-150.0,0.00028981,7]
[364789428,1749241891827,-150.0,0.00028989,7]
[364789429,1749241891838,-9025.23939096,0.00029,2]
[364789430,1749241891848,-4538.23268026,0.00029,2]
[364789431,1749241891858,-209740.33399577,0.00029,3]
[364789432,1749241891870,-189919.41846978,0.00029,2]
[364789433,1749241891882,-50579.84173778,0.00029,2]
[364789434,1749241891892,-302.48962414,0.00029,5]
[364789435,1749241891901,-18958.56913099,0.00029,2]
[364789436,1749241892898,-7977.50579978,0.0002042,2]
[364789437,1749241892909,-480.0,0.00027397,5]
[364789438,1749241892920,-480.0,0.00027397,2]
[364789439,1749241892929,-1125.49,0.00027397,5]
[364789440,1749241892939,-480.0,0.00027561,5]
[364789441,1749241892950,-480.0,0.00027561,2]
[364789442,1749241892960,-480.0,0.00027726,5]
[364789443,1749241892971,-951.49,0.0002789,5]
[364789444,1749241892981,-480.0,0.00028054,5]
[364789445,1749241892991,-951.49,0.00028054,5]
[364789446,1749241893001,-721.055128,0.000282,7]
[364789447,1749241893011,-480.0,0.00028219,5]
[364789448,1749241893022,-951.49,0.00028219,5]
[364789449,1749241893032,-721.055128,0.00028219,7]
[364789450,1749241893043,-480.0,0.00028383,5]
[364789451,1749241893053,-951.49,0.00028383,5]
[364789452,1749241893064,-721.055122,0.00028383,7]
[364789453,1749241893074,-480.0,0.00028547,5]
[364789454,1749241893085,-951.49,0.00028547,5]
[364789455,1749241893096,-480.0,0.00028712,5]
[364789456,1749241893105,-480.0,0.00028712,5]
[364789457,1749241893116,-951.49,0.00028712,5]
[364789458,1749241893126,-167.137,0.00028768,2]
[364789459,1749241893136,-874.97,0.00028876,5]
[364789460,1749241893146,-480.0,0.00028876,5]
[364789461,1749241893156,-480.0,0.00028876,5]
[364789462,1749241893165,-27122.20574219,0.00029,2]
[364789463,1749241893175,-67161.15990714,0.00029,2]
[364789464,1749241893185,-3648.22174813,0.00029,30]
[364789465,1749241893195,-151.0,0.00029,7]
[364789466,1749241893205,-151.0,0.00029,7]
[364789467,1749241893215,-151.0,0.00029,7]
[364789468,1749241893225,-151.0,0.00029,7]
[364789469,1749241893234,-222.330477,0.00029,7]
[364789470,1749241893244,-151.0,0.00029,7]
[364789471,1749241893255,-151.0,0.00029,7]
[364789472,1749241893265,-345.109926,0.00029,7]
[364789473,1749241893275,-345.109926,0.00029,7]
[364789474,1749241893285,-151.0,0.00029,7]
[364789475,1749241893295,-151.0,0.00029,7]
[364789476,1749241893306,-151.0,0.00029,7]
[364789477,1749241893316,-170.306146,0.00029,7]
[364789478,1749241893326,-151.0,0.00029,7]
[364789479,1749241893336,-170.306146,0.00029,7]
[364789480,1749241893345,-330.932588,0.00029,7]
[364789481,1749241893355,-330.932588,0.00029,7]
[364789482,1749241893364,-157.963801,0.00029,7]
[364789483,1749241893374,-157.963801,0.00029,7]
[364789484,1749241893384,-739.24117,0.00029,7]
[364789485,1749241893394,-739.24117,0.00029,7]
[364789486,1749241893404,-151.0,0.00029,7]
[364789487,1749241893413,-151.0,0.00029,7]
[364789488,1749241893423,-464.089284,0.00029,7]
[364789489,1749241893433,-464.089284,0.00029,7]
[364789490,1749241893442,-159.71,0.00029,2]
[364789491,1749241893452,-159.71,0.00029,2]
[364789492,1749241893462,-150.0,0.0002901,7]
[364789493,1749241893472,-151.168,0.00029011,2]
[364789494,1749241893481,-183.834,0.00029011,2]
[364789495,1749241893491,-150.859,0.00029011,2]
[364789496,1749241893501,-150.281,0.00029011,2]
[364789497,1749241893511,-240.448,0.00029011,2]
[364789498,1749241893520,-156.819,0.00029011,2]
[364789499,1749241893530,-150.0,0.00029011,2]
[364789500,1749241893539,-150.205,0.00029011,2]
[364789501,1749241893548,-151.0,0.00029011,7]
[364789502,1749241893558,-150.0,0.00029011,7]
[364789503,1749241893568,-255.59327405,0.00029013,7]
[364789504,1749241893578,-326.78703344,0.00029013,7]
[364789505,1749241893588,-739.24117,0.00029021,7]
[364789506,1749241893597,-739.241168,0.00029021,7]
[364789507,1749241893607,-151.0,0.00029021,7]
[364789508,1749241893616,-150.0,0.00029025,7]
[364789509,1749241893626,-150.0,0.00029025,7]
[364789510,1749241893635,-150.0,0.00029025,7]
[364789511,1749241893645,-984.41,0.00029038,2]
[364789512,1749241893654,-480.0,0.00029041,5]
[364789513,1749241893664,-151.0,0.00029041,7]
[364789514,1749241893673,-151.0,0.00029041,7]
[364789515,1749241893683,-154.20065,0.00029041,7]
[364789516,1749241893692,-345.109926,0.00029041,7]
[364789517,1749241893702,-345.109926,0.00029041,7]
[364789518,1749241893712,-151.0,0.00029041,7]
[364789519,1749241893721,-151.0,0.00029041,7]
[364789520,1749241893730,-1463.594543,0.00029041,5]
[364789521,1749241893740,-1652.978713,0.00029041,5]
[364789522,1749241893749,-156.813701,0.00029041,5]
[364789523,1749241893759,-151.0,0.00029041,7]
[364789524,1749241893768,-170.306146,0.00029041,7]
[364789525,1749241893778,-151.0,0.00029041,7]
[364789526,1749241893791,-170.306146,0.00029041,7]
[364789527,1749241893800,-330.932588,0.00029041,7]
[364789528,1749241893809,-480.0,0.00029041,5]
[364789529,1749241893819,-330.932588,0.00029041,7]
[364789530,1749241893831,-157.963801,0.00029041,7]
[364789531,1749241893840,-157.963801,0.00029041,7]
[364789532,1749241893849,-151.0,0.00029041,7]
[364789533,1749241893859,-480.0,0.00029041,5]
[364789534,1749241893870,-464.089284,0.00029041,7]
[364789535,1749241893880,-464.089284,0.00029041,7]
[364789536,1749241893890,-480.0,0.00029041,5]
[364789537,1749241893899,-480.0,0.00029041,5]
[364789538,1749241893909,-480.0,0.00029041,5]
[364789539,1749241893919,-590.27701063,0.00029041,5]
[364789540,1749241893928,-480.0,0.00029041,5]
[364789541,1749241893937,-480.0,0.00029041,5]
[364789542,1749241893947,-480.0,0.00029041,5]
[364789543,1749241893956,-1150.67,0.00029041,5]
[364789544,1749241893965,-849.58,0.00029041,5]
[364789545,1749241893975,-600.0,0.00029041,30]
[364789546,1749241893985,-1762.69,0.00029041,5]
[364789547,1749241893994,-480.0,0.00029041,5]
[364789548,1749241894004,-521.79,0.00029041,5]
[364789549,1749241894013,-480.0,0.00029041,5]
[364789550,1749241894024,-480.0,0.00029041,5]
[364789551,1749241894034,-1155.6,0.00029041,5]
[364789552,1749241894044,-480.0,0.00029041,5]
[364789553,1749241894053,-1160.86,0.00029041,5]
[364789554,1749241894063,-519.58,0.00029041,5]
[364789555,1749241894072,-552.94,0.00029041,5]
[364789556,1749241894083,-950.71,0.00029041,5]
[364789557,1749241894093,-480.0,0.00029041,5]
[364789558,1749241894103,-675.25,0.00029041,5]
[364789559,1749241894112,-885.57,0.00029041,5]
[364789560,1749241894122,-480.0,0.00029041,5]
[364789561,1749241894132,-666.72,0.00029041,5]
[364789562,1749241894141,-480.0,0.00029041,5]
[364789563,1749241894150,-1073.7,0.00029041,5]
[364789564,1749241894160,-519.6,0.00029041,5]
[364789565,1749241894169,-511.45,0.00029041,5]
[364789566,1749241894178,-499.44,0.00029041,5]
[364789567,1749241894187,-803.55,0.00029041,5]
[364789568,1749241894197,-579.61,0.00029041,5]
[364789569,1749241894206,-607.44,0.00029041,5]
[364789570,1749241894216,-883.54,0.00029041,5]
[364789571,1749241894225,-838.95,0.00029041,5]
[364789572,1749241894235,-480.0,0.00029041,5]
[364789573,1749241894245,-480.0,0.00029041,5]
[364789574,1749241894255,-732.08,0.00029041,5]
[364789575,1749241894265,-646.34,0.00029041,5]
[364789576,1749241894275,-480.0,0.00029041,5]
[364789577,1749241894285,-574.86,0.00029041,5]
[364789578,1749241894294,-480.0,0.00029041,5]
[364789579,1749241894305,-518.75,0.00029041,5]
[364789580,1749241894315,-951.19,0.00029041,5]
[364789581,1749241894325,-779.94,0.00029041,5]
[364789582,1749241894334,-689.83,0.00029041,5]
[364789583,1749241894344,-1012.85,0.00029041,5]
[364789584,1749241894354,-482.38,0.00029041,5]
[364789585,1749241894363,-713.99,0.00029041,5]
[364789586,1749241894373,-480.0,0.00029041,5]
[364789587,1749241894383,-549.54,0.00029041,5]
[364789588,1749241894394,-480.0,0.00029041,5]
[364789589,1749241894403,-891.22,0.00029041,5]
[364789590,1749241894413,-1010.55,0.00029041,5]
[364789591,1749241894422,-480.0,0.00029041,5]
[364789592,1749241894432,-580.5,0.00029041,5]
[364789593,1749241894442,-480.0,0.00029041,5]
[364789594,1749241894452,-480.0,0.00029041,5]
[364789595,1749241894462,-480.0,0.00029041,5]
[364789596,1749241894471,-480.0,0.00029041,5]
[364789597,1749241894481,-787.11,0.00029041,5]
[364789598,1749241894490,-480.0,0.00029041,5]
[364789599,1749241894500,-801.53,0.00029041,5]
[364789600,1749241894509,-547.92,0.00029041,5]
[364789601,1749241894520,-788.62,0.00029041,5]
[364789602,1749241894529,-823.95,0.00029041,5]
[364789603,1749241894539,-540.55,0.00029041,5]
[364789604,1749241894548,-480.0,0.00029041,5]
[364789605,1749241894558,-1667.28,0.00029041,5]
[364789606,1749241894568,-708.27,0.00029041,5]
[364789607,1749241894578,-815.35,0.00029041,5]
[364789608,1749241894587,-1322.04,0.00029041,5]
[364789609,1749241894597,-788.51,0.00029041,5]
[364789610,1749241894607,-480.0,0.00029041,5]
[364789611,1749241894616,-1588.19,0.00029041,5]
[364789612,1749241894626,-894.23,0.00029041,5]
[364789613,1749241894636,-627.73,0.00029041,5]
[364789614,1749241894645,-493.66,0.00029041,5]
[364789615,1749241894655,-907.31,0.00029041,5]
[364789616,1749241894664,-199.40101872,0.00029041,5]
[364789617,1749241894674,-543.94,0.00029041,5]
[364789618,1749241894683,-907.9,0.00029041,5]
[364789619,1749241894693,-612.39,0.00029041,5]
[364789620,1749241894702,-908.3,0.00029041,5]
[364789621,1749241894712,-156.813701,0.00029041,5]
[364789622,1749241894721,-480.0,0.00029041,5]
[364789623,1749241894731,-480.0,0.00029041,5]
[364789624,1749241894741,-3267.11,0.00029041,5]
[364789625,1749241894750,-778.17,0.00029041,5]
[364789626,1749241894759,-948.36,0.00029041,5]
[364789627,1749241894768,-1438.85,0.00029041,5]
[364789628,1749241894778,-542.99,0.00029041,5]
[364789629,1749241894864,-555.32,0.00029041,5]
[364789630,1749241894874,-150.270793,0.00029041,5]
[364789631,1749241894884,-1535.87,0.00029041,5]
[364789632,1749241894895,-1296.25,0.00029041,5]
[364789633,1749241894904,-516.58,0.00029041,5]
[364789634,1749241894915,-480.0,0.00029041,5]
[364789635,1749241894924,-1575.78,0.00029041,5]
[364789636,1749241894934,-538.08,0.00029041,5]
[364789637,1749241894943,-970.72,0.00029041,5]
[364789638,1749241894953,-2734.62,0.00029041,5]
[364789639,1749241894963,-1837.71,0.00029041,5]
[364789640,1749241894973,-480.0,0.00029041,5]
[364789641,1749241894982,-2758.24,0.00029041,5]
[364789642,1749241894991,-4609.26,0.00029041,5]
[364789643,1749241895000,-480.0,0.00029041,5]
[364789644,1749241895010,-819.99,0.00029041,5]
[364789645,1749241895020,-1046.07,0.00029041,5]
[364789646,1749241895029,-480.0,0.00029041,5]
[364789647,1749241895039,-3979.76,0.00029041,5]
[364789648,1749241895049,-902.21,0.00029041,5]
[364789649,1749241895058,-480.0,0.00029041,5]
[364789650,1749241895068,-599.88,0.00029041,5]
[364789651,1749241895079,-480.0,0.00029041,5]
[364789652,1749241895089,-765.24,0.00029041,5]
[364789653,1749241895098,-480.0,0.00029041,5]
[364789654,1749241895109,-57460.09,0.00029041,5]
[364789655,1749241895118,-703.27,0.00029041,5]
[364789656,1749241895128,-480.0,0.00029041,5]
[364789657,1749241895138,-4676.37,0.00029041,5]
[364789658,1749241895147,-2938.32,0.00029041,5]
[364789659,1749241895156,-1379.45,0.00029041,5]
[364789660,1749241895166,-7478.95,0.00029041,5]
[364789661,1749241895176,-755.4,0.00029041,5]
[364789662,1749241895185,-607.62,0.00029041,5]
[364789663,1749241895195,-1091.95,0.00029041,5]
[364789664,1749241895205,-3373.75,0.00029041,5]
[364789665,1749241895215,-1260.18,0.00029041,5]
[364789666,1749241895226,-949.92,0.00029041,5]
[364789667,1749241895235,-9118.0,0.00029041,5]
[364789668,1749241895245,-520.51,0.00029041,5]
[364789669,1749241895255,-480.0,0.00029041,5]
[364789670,1749241895264,-597.4,0.00029041,5]
[364789671,1749241895274,-1500.48,0.00029041,5]
[364789672,1749241895284,-1073.19,0.00029041,5]
[364789673,1749241895294,-2617.35,0.00029041,5]
[364789674,1749241895304,-1091.83,0.00029041,5]
[364789675,1749241895314,-1000.0,0.00029041,2]
[364789676,1749241895324,-480.0,0.00029041,5]
[364789677,1749241895335,-2954.48,0.00029041,5]
[364789678,1749241895345,-480.0,0.00029041,5]
[364789679,1749241895355,-676.46,0.00029041,5]
[364789680,1749241895365,-1100.1,0.00029041,5]
[364789681,1749241895375,-774.3,0.00029041,5]
[364789682,1749241895385,-909.08,0.00029041,5]
[364789683,1749241895395,-771.25,0.00029041,5]
[364789684,1749241895406,-1341.13,0.00029041,5]
[364789685,1749241895416,-1674.49,0.00029041,5]
[364789686,1749241895426,-480.0,0.00029041,5]
[364789687,1749241895436,-2363.43,0.00029041,5]
[364789688,1749241895445,-1778.5,0.00029041,5]
[364789689,1749241895455,-2094.52,0.00029041,5]
[364789690,1749241895465,-480.0,0.00029041,5]
[364789691,1749241895474,-2998.55,0.00029041,5]
[364789692,1749241895484,-837.35,0.00029041,5]
[364789693,1749241895494,-1324.98,0.00029041,5]
[364789694,1749241895504,-822.69,0.00029041,5]
[364789695,1749241895514,-4354.28,0.00029041,5]
[364789696,1749241895524,-10833.54,0.00029041,5]
[364789697,1749241895533,-1172.56,0.00029041,5]
[364789698,1749241895543,-2910.79,0.00029041,5]
[364789699,1749241895553,-1425.98,0.00029041,5]
[364789700,1749241895562,-1161.29,0.00029041,5]
[364789701,1749241895571,-701.08,0.00029041,5]
[364789702,1749241895583,-725.11,0.00029041,5]
[364789703,1749241895592,-480.0,0.00029041,5]
[364789704,1749241895601,-891.78,0.00029041,5]
[364789705,1749241895611,-622.3,0.00029041,5]
[364789706,1749241895622,-480.0,0.00029041,5]
[364789707,1749241895632,-2822.75,0.00029041,5]
[364789708,1749241895642,-1363.03,0.00029041,5]
[364789709,1749241895652,-3135.14,0.00029041,5]
[364789710,1749241895662,-1180.93,0.00029041,5]
[364789711,1749241895672,-931.09,0.00029041,5]
[364789712,1749241895682,-480.0,0.00029041,5]
[364789713,1749241895691,-1414.51,0.00029041,5]
[364789714,1749241895701,-1155.88,0.00029041,5]
[364789715,1749241895710,-4001.96,0.00029041,5]
[364789716,1749241895719,-552.73,0.00029041,5]
[364789717,1749241895729,-632.88,0.00029041,5]
[364789718,1749241895738,-1526.89,0.00029041,5]
[364789719,1749241895748,-1010.46,0.00029041,5]
[364789720,1749241895758,-391.03231994,0.00029041,5]
[364789721,1749241895767,-1132.61,0.00029041,5]
[364789722,1749241895777,-533.37,0.00029041,5]
[364789723,1749241895790,-1110.02,0.00029041,5]
[364789724,1749241895799,-4560.52,0.00029041,5]
[364789725,1749241895810,-593.39,0.00029041,5]
[364789726,1749241895819,-480.0,0.00029041,5]
[364789727,1749241895831,-1741.06,0.00029041,5]
[364789728,1749241895840,-480.0,0.00029041,5]
[364789729,1749241895850,-480.0,0.00029041,5]
[364789730,1749241895860,-480.0,0.00029041,5]
[364789731,1749241895870,-1207.6,0.00029041,5]
[364789732,1749241895879,-480.0,0.00029041,5]
[364789733,1749241895888,-526.84,0.00029041,5]
[364789734,1749241895900,-625.4,0.00029041,5]
[364789735,1749241895910,-776.39,0.00029041,5]
[364789736,1749241895920,-1627.41,0.00029041,5]
[364789737,1749241895930,-959.5,0.00029041,5]
[364789738,1749241895940,-3166.58,0.00029041,5]
[364789739,1749241895949,-480.0,0.00029041,5]
[364789740,1749241895959,-1176.26,0.00029041,5]
[364789741,1749241895969,-1451.66,0.00029041,5]
[364789742,1749241895978,-480.0,0.00029041,5]
[364789743,1749241895987,-579.90692628,0.00029041,5]
[364789744,1749241895996,-545.95394806,0.00029041,5]
[364789745,1749241896005,-2618.96,0.00029041,5]
[364789746,1749241896014,-7319.26,0.00029041,5]
[364789747,1749241896023,-15228.1,0.00029041,5]
[364789748,1749241896032,-480.0,0.00029041,5]
[364789749,1749241896042,-3041.7,0.00029041,5]
[364789750,1749241896052,-649.3,0.00029041,5]
[364789751,1749241896061,-480.0,0.00029041,5]
[364789752,1749241896073,-585.28,0.00029041,5]
[364789753,1749241896083,-11478.06,0.00029041,5]
[364789754,1749241896092,-1727.03,0.00029041,5]
[364789755,1749241896101,-1130.77,0.00029041,5]
[364789756,1749241896110,-7297.24,0.00029041,5]
[364789757,1749241896120,-480.0,0.00029041,5]
[364789758,1749241896129,-1673.57,0.00029041,5]
[364789759,1749241896139,-480.0,0.00029041,5]
[364789760,1749241896148,-480.0,0.00029041,5]
[364789761,1749241896158,-1724.44,0.00029041,5]
[364789762,1749241896168,-155.22438,0.00029041,5]
[364789763,1749241896177,-605.57,0.00029041,5]
[364789764,1749241896186,-2022.54,0.00029041,5]
[364789765,1749241896196,-1496.76,0.00029041,5]
[364789766,1749241896206,-616.43,0.00029041,5]
[364789767,1749241896215,-480.0,0.00029041,5]
[364789768,1749241896225,-1644.54,0.00029041,5]
[364789769,1749241896234,-3349.68,0.00029041,5]
[364789770,1749241896243,-584.83,0.00029041,5]
[364789771,1749241896252,-624.52,0.00029041,5]
[364789772,1749241896261,-1651.89,0.00029041,5]
[364789773,1749241896271,-869.35,0.00029041,5]
[364789774,1749241896281,-360.792683,0.00029041,5]
[364789775,1749241896290,-567.05,0.00029041,5]
[364789776,1749241896300,-718.31,0.00029041,5]
[364789777,1749241896309,-593.22,0.00029041,5]
[364789778,1749241896319,-724.33,0.00029041,5]
[364789779,1749241896328,-1529.35,0.00029041,5]
[364789780,1749241896338,-586.21,0.00029041,5]
[364789781,1749241896347,-618.5,0.00029041,5]
[364789782,1749241896356,-645.12,0.00029041,5]
[364789783,1749241896365,-1029.88,0.00029041,5]
[364789784,1749241896375,-856.04,0.00029041,5]
[364789785,1749241896384,-1316.83,0.00029041,5]
[364789786,1749241896394,-1219.25,0.00029041,5]
[364789787,1749241896403,-937.26,0.00029041,5]
[364789788,1749241896413,-2376.4,0.00029041,5]
[364789789,1749241896422,-480.0,0.00029041,2]
[364789790,1749241896432,-481.35,0.00029041,5]
[364789791,1749241896446,-1691.35,0.00029041,5]
[364789792,1749241896456,-874.97,0.00029041,5]
[364789793,1749241896466,-480.0,0.00029041,5]
[364789794,1749241896475,-480.0,0.00029041,5]
[364789795,1749241896485,-1037.35961266,0.00029041,30]
[364789796,1749241896494,-150.0,0.00029042,7]
[364789797,1749241896503,-255.59327405,0.00029045,7]
[364789798,1749241896512,-326.78703344,0.00029045,7]
[364789799,1749241896522,-150.0,0.00029049,7]
[364789800,1749241896532,-833.32850399,0.0002905,2]
[364789801,1749241896541,-150.0,0.00029061,7]
[364789802,1749241896551,-150.0,0.00029066,7]
[364789803,1749241896560,-933.1520387,0.00029072,20]
[364789804,1749241896570,-255.59327405,0.00029077,7]
[364789805,1749241896579,-326.78703344,0.00029077,7]
[364789806,1749241896588,-150.0,0.00029082,7]
[364789807,1749241896598,-150.0,0.00029087,7]
[364789808,1749241896607,-190.7,0.00029095,2]
[364789809,1749241896616,-150.0,0.00029097,7]
[364789810,1749241896625,-255.59327405,0.00029109,7]